bitfinex/quotes_SOLUSD_20260208
["timestamp","ask_amount","ask_price","bid_price","bid_amount"]
[1770581430037,1.07613558,87.667,87.641,0.92796779]
[1770581437038,1.07613558,87.667,87.642,12.27212734]
[1770581437231,1.07613558,87.667,87.643,0.8620728]
[1770581437627,11.40653276,87.67,87.65,10.73389544]
[1770581438025,12.48266834,87.67,87.643,0.8620728]
[1770581439226,1.07613558,87.669,87.643,0.8620728]
[1770581440147,1.07613558,87.669,87.64,4.0031523]
[1770581441050,1.07613558,87.669,87.63,4.0031523]
[1770581441349,1.07613558,87.667,87.63,4.0031523]
[1770581442840,1.07613558,87.659,87.628,11.4118291]
[1770581444149,1.07613558,87.657,87.629,0.80129679]
[1770581448853,0.86777917,87.655,87.617,11.4131854]
[1770581449055,0.86777917,87.649,87.617,11.4131854]
[1770581449560,0.86777917,87.649,87.618,0.75297506]
[1770581451258,0.86777917,87.647,87.618,0.75297506]
[1770581454472,0.86777917,87.647,87.62,0.71518826]
[1770581454850,11.40927345,87.648,87.62,0.71518826]
[1770581456246,11.40875279,87.652,87.621,11.41278917]
[1770581456442,4.0031523,87.68,87.631,0.70067418]
[1770581456443,11.40523956,87.679,87.631,0.70067418]
[1770581456647,0.86777917,87.669,87.624,0.70067418]
[1770581456976,0.86777917,87.659,87.624,0.70067418]
[1770581457769,0.86777917,87.659,87.631,0.6864916]
[1770581459363,0.86777917,87.669,87.633,0.67952226]
[1770581461065,0.86777917,87.669,87.634,11.41109614]
[1770581461671,0.86777917,87.669,87.635,0.66582279]
[1770581462070,0.86777917,87.649,87.59,0.65909085]
[1770581462258,0.86777917,87.619,87.591,12.07578891]
[1770581462458,0.86777917,87.619,87.592,0.65909085]
[1770581463275,0.86777917,87.619,87.593,11.41643738]
[1770581464079,0.86777917,87.649,87.611,0.64585804]
[1770581464454,57.01874797,87.691,87.621,0.64585804]
[1770581464455,0.86777917,87.656,87.621,0.64585804]
[1770581464656,0.86777917,87.656,87.63,4.0031523]
[1770581464953,0.86777917,87.668,87.631,0.63935541]
[1770581465363,0.86777917,87.668,87.641,0.63935541]
[1770581466059,0.86777917,87.675,87.641,0.63935541]
[1770581466262,11.40561382,87.677,87.651,0.63292747]
[1770581466763,12.27339299,87.677,87.651,0.63292747]
[1770581467362,0.86777917,87.676,87.66,4.0031523]
[1770581471277,12.27340898,87.676,87.66,2.75378684]
[1770581471481,0.86777917,87.675,87.64,4.0031523]
[1770581472175,0.86777917,87.675,87.636,11.41074721]
[1770581472377,0.86777917,87.675,87.64,4.0031523]
[1770581473269,11.40589,87.674,87.65,4.0031523]
[1770581473462,0.86777917,87.673,87.65,4.0031523]
[1770581473662,0.86777917,87.673,87.64,4.0031523]
[1770581474962,0.86777917,87.673,87.65,4.0031523]
[1770581475578,0.83714621,87.689,87.66,4.0031523]
[1770581476359,0.83714621,87.689,87.651,0.56691114]
[1770581477280,0.83714621,87.688,87.651,0.56691114]
[1770581477579,0.83714621,87.688,87.65,4.00224029]
[1770581479382,0.83714621,87.686,87.65,4.00224029]
[1770581479684,0.83714621,87.686,87.651,0.54491045]
[1770581480476,11.40445914,87.685,87.651,0.54491045]
[1770581480683,0.83714621,87.684,87.651,0.54491045]
[1770581482687,28.50878579,87.693,87.661,0.52906441]
[1770581482688,0.83714621,87.682,87.661,0.52906441]
[1770581482871,11.40406897,87.688,87.661,0.52906441]
[1770581483069,11.40406897,87.688,87.67,4.00224029]
[1770581484985,0.83714621,87.696,87.68,4.00224029]
[1770581485189,0.83714621,87.694,87.671,0.51375815]
[1770581485489,0.83714621,87.694,87.67,4.00224029]
[1770581486492,0.83714621,87.712,87.681,0.50877281]
[1770581486885,0.83714621,87.709,87.67,4.00224029]
[1770581487396,0.83714621,87.709,87.671,0.50384474]
[1770581488398,0.83714621,87.709,87.67,4.00224029]
[1770581488692,0.83714621,87.709,87.598,1.14157857]
[1770581488693,0.83714621,87.679,87.64,4.81298226]
[1770581488901,0.83714621,87.679,87.641,0.81074197]
[1770581490993,0.83714621,87.677,87.641,0.81074197]
[1770581493970,0.83714621,87.675,87.641,0.81074197]
[1770581495877,0.83714621,87.688,87.661,0.81074197]
[1770581496194,0.83714621,87.669,87.643,3.5]
[1770581496391,0.83714621,87.669,87.634,11.41098065]
[1770581496599,0.83714621,87.669,87.635,0.81074197]
[1770581497510,0.83714621,87.667,87.635,0.81074197]
[1770581498078,0.83714621,87.667,87.641,0.81074197]
[1770581498479,0.83714621,87.667,87.625,0.81074197]
[1770581498684,0.83714621,87.659,87.625,0.81074197]
[1770581500306,0.83714621,87.657,87.625,0.81074197]
[1770581503998,0.83714621,87.655,87.625,0.81074197]
[1770581505907,0.83714621,87.655,87.63,4.00224029]
[1770581506505,11.40849248,87.654,87.631,0.75532571]
[1770581507104,0.74731633,87.653,87.631,0.75532571]
[1770581509206,0.74731633,87.651,87.619,0.75532571]
[1770581511597,0.74731633,87.649,87.619,0.75532571]
[1770581511790,0.74731633,87.649,87.62,4.757566]
[1770581511990,0.74731633,87.649,87.621,0.75532571]
[1770581514534,0.74731633,87.655,87.621,0.75532571]
[1770581518013,0.74731633,87.653,87.621,0.75532571]
[1770581518215,0.74731633,87.649,87.615,0.75532571]
[1770581519023,0.74731633,87.639,87.596,0.75532571]
[1770581519717,0.74731633,87.639,87.601,0.75532571]
[1770581520100,0.74731633,87.637,87.601,0.75532571]
[1770581520301,0.74731633,87.619,87.586,0.75532571]
[1770581521417,0.74731633,87.619,87.587,0.75532571]
[1770581521622,0.74731633,87.629,87.601,0.75532571]
[1770581521914,0.74731633,87.656,87.621,0.75532571]
[1770581522120,4.00224029,87.66,87.621,0.75532571]
[1770581522121,39.92926814,87.655,87.621,0.75532571]
[1770581522302,0.74731633,87.654,87.621,0.75532571]
[1770581525925,11.40862263,87.653,87.631,0.75532571]
[1770581526124,0.74731633,87.658,87.64,4.00224029]
[1770581526424,0.74731633,87.658,87.637,0.75532571]
[1770581528229,11.40778676,87.66,87.641,0.75532571]
[1770581528699,0.74731633,87.664,87.641,0.75532571]
[1770581529799,0.74731633,87.662,87.641,0.75532571]
[1770581530537,0.74731633,87.66,87.641,0.75532571]
[1770581530716,11.40758147,87.661,87.641,0.75532571]
[1770581531238,0.74731633,87.66,87.64,4.00224029]
[1770581531700,0.74731633,87.66,87.63,4.00224029]
[1770581531906,0.74731633,87.66,87.63,4.757566]
[1770581532106,0.74731633,87.66,87.631,0.75532571]
[1770581535728,11.40758147,87.661,87.601,3.5]
[1770581535729,11.40758147,87.661,87.641,0.77618573]
[1770581536930,11.40680073,87.667,87.641,0.77618573]
[1770581539337,0.72177765,87.666,87.633,0.77618573]
[1770581539542,0.72177765,87.666,87.641,0.77618573]
[1770581548040,11.40706097,87.665,87.641,0.77618573]
[1770581549032,0.72177765,87.664,87.64,4.00362635]
[1770581549442,0.72177765,87.659,87.611,0.77618573]
[1770581549627,0.72177765,87.659,87.615,12.18965126]
[1770581549953,0.72177765,87.659,87.62,4.00362635]
[1770581549954,11.40797189,87.658,87.62,4.00362635]
[1770581550141,0.72177765,87.657,87.62,4.00362635]
[1770581550533,0.72177765,87.657,87.62,4.77981208]
[1770581551044,0.72177765,87.657,87.621,0.77618573]
[1770581551748,11.40823218,87.656,87.63,4.00362635]
[1770581551959,0.72177765,87.664,87.64,4.00362635]
[1770581552148,0.72177765,87.664,87.63,4.00362635]
[1770581553030,0.72177765,87.667,87.64,4.00362635]
[1770581553352,0.72177765,87.667,87.641,0.77618573]
[1770581553852,0.72177765,87.667,87.65,4.00362635]
[1770581554852,0.72177765,87.678,87.66,4.00362635]
[1770581555147,0.72177765,87.678,87.65,0.77618573]
[1770581555148,0.72177765,87.678,87.651,0.77618573]
[1770581559653,0.72177765,87.676,87.651,0.77618573]
[1770581560058,0.72177765,87.669,87.63,4.00362635]
[1770581560360,0.72177765,87.669,87.64,4.00362635]
[1770581560662,0.72177765,87.669,87.64,4.77981208]
[1770581561960,0.72177765,87.667,87.641,0.77618573]
[1770581562339,0.72177765,87.667,87.635,0.77618573]
[1770581562651,0.72177765,87.667,87.621,0.77618573]
[1770581563252,0.72177765,87.667,87.631,0.77618573]
[1770581563453,11.40667062,87.668,87.651,0.77618573]
[1770581566756,28.51247472,87.681,87.661,0.73883709]
[1770581567463,29.29153405,87.681,87.661,0.73883709]
[1770581567663,0.77905933,87.681,87.661,0.73883709]
[1770581571571,0.77905933,87.679,87.661,0.73883709]
[1770581574470,11.40536964,87.678,87.66,4.00362635]
[1770581574658,0.77905933,87.677,87.66,4.00362635]
[1770581574858,0.77905933,87.677,87.655,0.73883709]
[1770581576166,0.77905933,87.677,87.66,4.00362635]
[1770581580979,0.77905933,87.697,87.671,0.73883709]
[1770581582374,0.77905933,87.695,87.671,0.73883709]
[1770581583481,11.40302864,87.696,87.68,4.74246344]
[1770581585562,0.77905933,87.706,87.69,4.00362635]
[1770581587059,0.77905933,87.713,87.691,0.73883709]
[1770581587264,0.77905933,87.713,87.69,4.00362635]
[1770581587975,0.77905933,87.713,87.685,0.73883709]
[1770581588178,0.77905933,87.713,87.673,0.73883709]
[1770581589182,0.77905933,87.709,87.673,0.73883709]
[1770581592082,0.77905933,87.707,87.673,0.73883709]
[1770581592476,0.77905933,87.707,87.674,11.40589]
[1770581592679,15.60354922,87.72,87.681,0.73883709]
[1770581592986,4.00362635,87.71,87.681,0.73883709]
[1770581593986,4.00362635,87.69,87.651,0.73883709]
[1770581594171,42.42,87.689,87.651,0.73883709]
[1770581594583,0.77905933,87.688,87.651,0.73883709]
[1770581596786,0.71218446,87.686,87.651,0.73883709]
[1770581598074,0.71218446,87.684,87.651,0.73883709]
[1770581598285,42.44,87.683,87.646,0.76268329]
[1770581598584,0.71218446,87.682,87.646,0.76268329]
[1770581598777,0.71218446,87.682,87.649,0.76268329]
[1770581599178,0.71218446,87.682,87.651,0.76268329]
[1770581599993,0.71218446,87.678,87.651,0.76268329]
[1770581601083,0.71218446,87.678,87.653,0.76268329]
[1770581601774,11.4051616,87.68,87.653,0.76268329]
[1770581602775,11.4051616,87.68,87.66,4.76584039]
[1770581603291,0.71218446,87.681,87.661,0.76268329]
[1770581603598,42.54,87.679,87.661,0.76268329]
[1770581603795,0.71218446,87.703,87.671,0.76268329]
[1770581603994,0.71218446,87.703,87.67,4.76584039]
[1770581604386,0.71218446,87.703,87.67,0.76268329]
[1770581604583,0.71218446,87.699,87.664,0.76268329]
[1770581604786,0.71218446,87.699,87.635,3.5]
[1770581604787,4.0031571,87.67,87.625,0.76268329]
[1770581605095,4.0031571,87.67,87.601,57.07654621]
[1770581605096,0.71218446,87.668,87.631,0.76268329]
[1770581605496,0.71218446,87.666,87.631,0.76268329]
[1770581606096,0.71218446,87.664,87.631,0.76268329]
[1770581609199,0.71218446,87.659,87.621,0.76268329]
[1770581609413,0.71218446,87.649,87.621,0.76268329]
[1770581612404,11.40927345,87.648,87.621,0.76268329]
[1770581612612,0.71218446,87.647,87.621,0.76268329]
[1770581614511,11.4095338,87.646,87.621,0.76268329]
[1770581616812,0.71218446,87.647,87.621,0.76268329]
[1770581618407,11.4095338,87.646,87.621,0.76268329]
[1770581620426,0.71218446,87.646,87.621,0.76268329]
[1770581624227,0.71218446,87.644,87.621,0.76268329]
[1770581626712,0.942781,87.642,87.614,0.88841229]
[1770581627027,0.942781,87.641,87.614,0.88841229]
[1770581627727,0.942781,87.641,87.616,0.88841229]
[1770581627929,0.942781,87.641,87.619,0.88841229]
[1770581629435,12.35218906,87.647,87.62,4.0031571]
[1770581629741,42.96,87.643,87.621,0.88841229]
[1770581632435,11.40940806,87.647,87.621,0.88841229]
[1770581632640,54.42940806,87.647,87.621,0.88841229]
[1770581633736,11.40857969,87.654,87.631,0.88841229]
[1770581634640,12.35136069,87.654,87.631,0.88841229]
[1770581639317,8.93516384,87.654,87.63,4.0031571]
[1770581640022,1.00372798,87.66,87.63,4.0031571]
[1770581641835,1.00372798,87.658,87.631,0.02272146]
[1770581642146,1.00372798,87.658,87.64,4.02587856]
[1770581642331,1.00372798,87.658,87.636,0.02272146]
[1770581642639,1.00372798,87.658,87.63,4.0031571]
[1770581642833,1.00372798,87.658,87.631,0.02272146]
[1770581643037,1.00372798,87.658,87.64,4.03327906]
[1770581644040,11.40810203,87.657,87.64,0.03012196]
[1770581646235,1.00372798,87.657,87.64,0.03012196]
[1770581646746,1.00372798,87.657,87.624,0.03839446]
[1770581646934,1.00372798,87.657,87.627,0.03886473]
[1770581648149,1.00372798,87.657,87.629,11.41162296]
[1770581648351,1.00372798,87.657,87.631,0.0393296]
[1770581649452,1.00372798,87.655,87.631,0.0393296]
[1770581650347,1.00372798,87.655,87.626,0.04024339]
[1770581651549,1.00372798,87.66,87.63,4.0031571]
[1770581651749,1.00372798,87.66,87.631,0.04069242]
[1770581653450,11.40784175,87.659,87.631,0.04069242]
[1770581653656,1.00372798,87.658,87.631,0.04069242]
[1770581659635,4.20417264,87.72,87.607,3.5]
[1770581659636,11.40393892,87.689,87.651,0.04490866]
[1770581659841,1.00372798,87.688,87.651,0.04490866]
[1770581662566,1.00372798,87.686,87.66,4.00417264]
[1770581665158,1.00372798,87.684,87.655,0.04684101]
[1770581665347,1.00372798,87.684,87.65,4.00417264]
[1770581666652,1.00372798,87.688,87.661,0.04758324]
[1770581668969,1.00372798,87.688,87.642,11.41005454]
[1770581669169,1.00372798,87.679,87.642,11.41005454]
[1770581670172,1.00372798,87.679,87.642,11.45907175]
[1770581670970,1.00372798,87.679,87.643,0.04901721]
[1770581673172,4.00417264,87.67,87.633,0.05005004]
[1770581673374,1.00372798,87.669,87.64,4.00417264]
[1770581674268,1.00372798,87.667,87.64,4.00417264]
[1770581674986,1.00372798,87.667,87.642,0.05071897]
[1770581676980,12.41065883,87.666,87.642,0.05071897]
[1770581677582,104.1,87.719,87.661,0.05137262]
[1770581677583,1.00372798,87.688,87.661,0.05137262]
[1770581678665,11.40419902,87.687,87.661,0.05137262]
[1770581678967,1.00372798,87.686,87.661,0.05137262]
[1770581683280,11.40419902,87.687,87.661,0.05137262]
[1770581683483,11.40419902,87.687,87.671,0.05324535]
[1770581683985,1.00372798,87.691,87.67,4.00417264]
[1770581684878,1.00372798,87.691,87.66,4.00417264]
[1770581685688,1.00372798,87.691,87.654,11.40838345]
[1770581687585,1.00372798,87.689,87.65,4.00417264]
[1770581687790,1.00372798,87.689,87.647,0.05413415]
[1770581688792,1.00372798,87.687,87.647,0.05413415]
[1770581691999,1.00372798,87.685,87.65,4.00417264]
[1770581692203,1.00372798,87.685,87.65,4.06026469]
[1770581692996,1.00372798,87.685,87.651,0.05609205]
[1770581696082,1.00372798,87.683,87.651,0.05609205]
[1770581697296,1.00372798,87.681,87.651,0.05609205]
[1770581698418,1.00372798,87.697,87.651,0.05609205]
[1770581700301,1.00372798,87.695,87.652,0.05814411]
[1770581701395,4.00417264,87.68,87.632,3.5]
[1770581701699,1.00372798,87.669,87.628,0.05838754]
[1770581702001,1.00372798,87.669,87.62,4.00417264]
[1770581702304,1.00372798,87.693,87.66,4.00417264]
[1770581702497,11.40003876,87.719,87.671,0.8360006]
[1770581702682,11.40003876,87.719,87.651,39.93109034]
[1770581702683,11.40003876,87.719,87.681,0.8360006]
[1770581702996,39.90013566,87.719,87.681,0.8360006]
[1770581703701,0.2,87.72,87.691,0.83623846]
[1770581703997,39.90013566,87.719,87.681,0.8364736]
[1770581704201,4.00417264,87.7,87.66,7.40417264]
[1770581704385,4.20417264,87.72,87.655,0.8364736]
[1770581704386,4.00417264,87.69,87.655,0.8364736]
[1770581704581,0.95676154,87.689,87.655,11.40823425]
[1770581704798,0.95676154,87.689,87.656,0.8364736]
[1770581705186,0.95676154,87.689,87.661,0.83670604]
[1770581706002,0.95676154,87.687,87.655,12.24517005]
[1770581706199,0.95676154,87.687,87.656,0.8369358]
[1770581706905,0.95676154,87.679,87.637,11.41066308]
[1770581707402,0.95676154,87.679,87.636,0.83716293]
[1770581707702,0.95676154,87.679,87.641,0.83716293]
[1770581708209,0.95676154,87.677,87.641,0.83716293]
[1770581709609,0.95676154,87.669,87.623,11.4124056]
[1770581710302,0.95676154,87.667,87.624,0.86822533]
[1770581711192,0.95676154,87.667,87.63,4.00417264]
[1770581712304,11.40693085,87.666,87.63,4.00417264]
[1770581712509,0.95676154,87.665,87.63,4.00417264]
[1770581712811,0.95676154,87.659,87.62,4.00417264]
[1770581713587,0.95676154,87.659,87.619,0.89822963]
[1770581713798,0.95676154,87.657,87.619,0.89822963]
[1770581714001,0.95676154,87.649,87.612,0.9080022]
[1770581714813,0.95676154,87.649,87.614,0.9080022]
[1770581715111,0.95676154,87.649,87.602,0.92721188]
[1770581715692,0.95676154,87.649,87.604,95.00923654]
[1770581716005,1.02062736,87.647,87.605,0.93665156]
[1770581716998,1.02062736,87.644,87.605,0.93665156]
[1770581717611,1.02062736,87.644,87.611,0.95520688]
[1770581717908,30.0,87.646,87.63,4.00417264]
[1770581717909,29.04479312,87.646,87.63,4.00417264]
[1770581718109,1.02062736,87.66,87.64,4.00417264]
[1770581718912,1.02062736,87.66,87.63,4.00417264]
[1770581719108,1.02062736,87.66,87.606,39.95160148]
[1770581719109,43.26,87.712,87.651,1.03481287]
[1770581719424,4.00417264,87.7,87.661,1.03481287]
[1770581720231,11.40263857,87.699,87.649,1.03481287]
[1770581720519,11.40263857,87.699,87.66,4.00417264]
[1770581720930,11.40263857,87.699,87.66,4.00199333]
[1770581721095,1.02062736,87.698,87.66,4.00199333]
[1770581721496,1.02062736,87.696,87.66,4.00199333]
[1770581722517,1.02062736,87.694,87.66,4.00199333]
[1770581723116,1.02062736,87.692,87.66,4.00199333]
[1770581723292,1.02062736,87.692,87.631,28.528717]
[1770581723293,1.02062736,87.669,87.62,4.00199333]
[1770581723494,1.02062736,87.659,87.623,1.03481287]
[1770581723690,1.02062736,87.658,87.631,1.03481287]
[1770581725920,1.02062736,87.656,87.631,1.03481287]
[1770581727116,1.02062736,87.656,87.61,5.0368062]
[1770581727416,1.02062736,87.649,87.611,1.03481287]
[1770581728005,1.02062736,87.639,87.611,1.03481287]
[1770581728319,1.02062736,87.639,87.605,11.41485342]
[1770581728513,1.02062736,87.639,87.606,1.03481287]
[1770581729017,1.02062736,87.639,87.611,1.03481287]
[1770581729910,1.02062736,87.637,87.611,1.03481287]
[1770581730108,1.02062736,87.637,87.604,94.07258498]
[1770581730300,1.02062736,87.637,87.605,1.03481287]
[1770581730901,43.44,87.65,87.631,1.03481287]
[1770581732812,1.02062736,87.668,87.631,1.03481287]
[1770581733011,43.46,87.667,87.641,1.03481287]
[1770581733216,1.02062736,87.666,87.631,1.03481287]
[1770581733516,43.46,87.667,87.626,11.41211941]
[1770581733517,11.40654051,87.669,87.64,4.00199333]
[1770581733698,1.02062736,87.667,87.641,1.03481287]
[1770581733899,1.02062736,87.667,87.634,1.03481287]
[1770581734109,1.02062736,87.667,87.63,4.00199333]
[1770581735506,1.02062736,87.665,87.63,5.0368062]
[1770581736402,1.02062736,87.659,87.616,1.03481287]
[1770581736801,0.02062736,87.659,87.621,1.03481287]
[1770581737001,0.02062736,87.659,87.622,1.03481287]
[1770581737417,0.02062736,87.659,87.631,1.03481287]
[1770581737807,39.92425797,87.666,87.604,94.07258498]
[1770581737808,11.40693085,87.666,87.641,1.03481287]
[1770581738902,11.40628029,87.671,87.641,1.03481287]
[1770581739700,1.02062736,87.67,87.641,1.03481287]
[1770581740933,44.62062736,87.67,87.641,1.03481287]
[1770581741616,11.40654051,87.669,87.641,1.03481287]
[1770581742204,1.02062736,87.684,87.651,1.03481287]
[1770581742411,43.64,87.679,87.651,1.03481287]
[1770581742821,1.02062736,87.678,87.651,1.03481287]
[1770581744817,11.40436377,87.686,87.671,1.03481287]
[1770581745029,12.42369636,87.696,87.671,1.03481287]
[1770581746129,1.27128462,87.703,87.671,1.03481287]
[1770581749334,11.40224852,87.702,87.671,1.03481287]
[1770581749540,1.27128462,87.701,87.671,1.03481287]
[1770581750620,11.40250855,87.7,87.671,1.03481287]
[1770581751134,1.27128462,87.701,87.68,4.00199333]
[1770581751335,11.40154778,87.708,87.681,1.26502839]
[1770581751537,1.27128462,87.707,87.681,1.26502839]
[1770581752339,4.20199333,87.72,87.681,1.26502839]
[1770581752340,11.40092436,87.713,87.681,1.26502839]
[1770581752527,1.27128462,87.712,87.681,1.26502839]
[1770581755453,4.20199333,87.72,87.667,1.26502839]
[1770581755454,1.27128462,87.709,87.667,1.26502839]
[1770581755625,1.27128462,87.709,87.67,4.00199333]
[1770581755944,1.27128462,87.709,87.671,1.26502839]
[1770581756444,1.27128462,87.709,87.681,1.26502839]
[1770581757144,1.27128462,87.709,87.68,4.00199333]
[1770581757445,1.27128462,87.707,87.669,5.79e-06]
[1770581757638,1.27128462,87.707,87.68,5.67e-06]
[1770581758844,1.27128462,87.705,87.68,5.67e-06]
[1770581760342,1.54735992,87.72,87.669,5.79e-06]
[1770581760534,1.34735992,87.718,87.669,5.79e-06]
[1770581760741,1.34735992,87.718,87.68,4.00199333]
[1770581760948,1.34735992,87.716,87.68,4.00199333]
[1770581762243,1.34735992,87.709,87.673,11.40591234]
[1770581762830,1.34735992,87.707,87.67,4.00199333]
[1770581763155,39.90513977,87.708,87.669,5.79e-06]
[1770581763156,1.34735992,87.699,87.669,5.79e-06]
[1770581763748,1.34735992,87.699,87.67,4.00199333]
[1770581765546,1.34735992,87.689,87.669,5.79e-06]
[1770581765751,1.34735992,87.689,87.67,4.00199333]
[1770581767044,11.40336944,87.694,87.67,4.00199333]
[1770581767242,11.40336944,87.694,87.67,4.33303601]
[1770581767844,1.34735992,87.696,87.671,0.33104268]
[1770581768650,0.2,87.72,87.691,0.34425834]
[1770581768826,0.2,87.72,87.71,4.00199333]
[1770581769636,1.71948909,87.73,87.71,4.00199333]
[1770581769837,1.51948909,87.728,87.71,4.00199333]
[1770581770232,0.2,87.73,87.72,4.00199333]
[1770581770825,1.71948909,87.73,87.71,4.00199333]
[1770581771362,0.2,87.76,87.721,1.26502839]
[1770581771652,0.2,87.76,87.75,4.00199333]
[1770581772030,0.2,87.76,87.745,9.8e-07]
[1770581772230,0.2,87.76,87.75,4.00199333]
[1770581772425,0.2,87.76,87.75,6.63e-06]
[1770581772643,0.2,87.76,87.745,9.8e-07]
[1770581772933,0.2,87.76,87.74,4.00199333]
[1770581773554,0.2,87.76,87.721,39.89922595]
[1770581773735,0.2,87.76,87.74,4.00199333]
[1770581773936,0.2,87.76,87.75,4.00199333]
[1770581774452,0.2,87.77,87.75,4.00199333]
[1770581774646,1.55757238,87.778,87.76,4.00199333]
[1770581776256,7.755571,87.779,87.761,0.06164429]
[1770581776460,7.69392671,87.779,87.77,4.00199333]
[1770581777668,1.58839453,87.777,87.75,4.00199333]
[1770581778046,1.58839453,87.777,87.76,4.00199333]
[1770581778550,7.69392671,87.779,87.77,4.00199333]
[1770581779156,1.78839453,87.79,87.765,11.3940561]
[1770581779341,1.78839453,87.79,87.77,4.00199333]
[1770581779656,0.2,87.79,87.77,4.00199333]
[1770581779852,0.2,87.79,87.764,11.39418981]
[1770581780529,0.2,87.79,87.74,5.36086188]
[1770581780530,1.78839453,87.79,87.77,4.00199333]
[1770581780937,1.78839453,87.79,87.76,4.00199333]
[1770581781154,1.58839453,87.789,87.76,4.00199333]
[1770581781464,1.58839453,87.789,87.77,4.00199333]
[1770581782857,1.58839453,87.789,87.77,3.99177903]
[1770581784263,1.58839453,87.789,87.761,0.0244092]
[1770581786351,0.2,87.79,87.772,0.0567688]
[1770581786760,1.78839453,87.79,87.764,11.39412186]
[1770581787260,0.13698057,87.79,87.77,3.99177903]
[1770581787559,0.13698057,87.79,87.78,3.99177903]
[1770581787765,0.13698057,87.79,87.759,28.48696491]
[1770581787766,0.13698057,87.79,87.77,3.99177903]
[1770581788165,1.61990424,87.789,87.76,3.99177903]
[1770581788665,1.61990424,87.789,87.763,11.39421371]
[1770581789365,1.61990424,87.779,87.74,3.99177903]
[1770581790770,1.61990424,87.777,87.74,3.99177903]
[1770581791963,1.61990424,87.785,87.76,3.99177903]
[1770581792162,1.61990424,87.785,87.75,3.99177903]
[1770581792354,1.61990424,87.779,87.741,11.39718033]
[1770581792855,1.61990424,87.777,87.75,3.99177903]
[1770581795471,1.61990424,87.777,87.751,11.39588152]
[1770581795982,1.61990424,87.777,87.76,3.99177903]
[1770581796950,1.61990424,87.777,87.752,0.04620991]
[1770581797265,7.35390066,87.787,87.77,3.99177903]
[1770581797474,7.35390066,87.787,87.771,1.44045065]
[1770581797663,0.2,87.8,87.78,3.99177903]
[1770581799478,1.84819617,87.8,87.78,3.99177903]
[1770581801168,0.2,87.8,87.78,3.99177903]
[1770581801381,0.2,87.8,87.781,0.02004249]
[1770581801674,1.64819617,87.799,87.77,15.38513227]
[1770581802261,1.64819617,87.799,87.752,0.02491006]
[1770581802577,1.64819617,87.798,87.77,3.99177903]
[1770581802759,11.38965136,87.799,87.78,3.99177903]
[1770581803161,0.2,87.8,87.78,3.99177903]
[1770581805574,0.2,87.8,87.79,3.99177903]
[1770581809969,1.64819617,87.805,87.79,3.99177903]
[1770581811189,1.64819617,87.834,87.8,3.99177903]
[1770581811487,1.64819617,87.834,87.81,3.99177903]
[1770581811782,7.22458672,87.835,87.82,3.99177903]
[1770581812383,7.22458672,87.835,87.821,11.38679814]
[1770581812779,1.64819617,87.834,87.82,3.99177903]
[1770581814186,1.64819617,87.834,87.811,11.38799508]
[1770581814394,1.64819617,87.834,87.82,3.99177903]
[1770581815486,7.22458672,87.835,87.82,15.37864354]
[1770581815881,7.22458672,87.835,87.81,3.99177903]
[1770581816188,7.22458672,87.835,87.82,3.99177903]
[1770581816570,7.22458672,87.835,87.81,3.99177903]
[1770581816571,1.64819617,87.834,87.81,3.99177903]
[1770581817863,1.64819617,87.832,87.8,3.99177903]
[1770581818586,7.22458672,87.835,87.82,3.99177903]
[1770581818888,1.64819617,87.834,87.81,3.99177903]
[1770581819289,7.22458672,87.835,87.82,3.99177903]
[1770581820271,7.22458672,87.835,87.821,11.38679814]
[1770581820571,0.2,87.85,87.821,11.38679814]
[1770581820770,0.2,87.85,87.83,3.99177903]
[1770581821673,1.84819617,87.85,87.83,3.99177903]
[1770581822490,1.84819617,87.85,87.84,3.99177903]
[1770581822692,1.84819617,87.85,87.831,11.3855017]
[1770581823279,1.84819617,87.85,87.804,5.13032502]
[1770581823474,11.383428,87.847,87.82,3.99177903]
[1770581823795,1.64819617,87.846,87.82,15.37864698]
[1770581824187,1.64819617,87.846,87.82,3.99177903]
[1770581824391,1.64819617,87.846,87.8,3.99177903]
[1770581824780,1.64819617,87.846,87.81,3.99177903]
[1770581825778,1.64819617,87.844,87.81,3.99177903]
[1770581826699,0.11269498,87.85,87.83,3.99177903]
[1770581826999,0.11269498,87.85,87.84,3.99177903]
[1770581827179,0.11269498,87.85,87.809,3.5]
[1770581827180,0.11269498,87.85,87.83,3.99177903]
[1770581827779,1.76089115,87.85,87.83,3.99177903]
[1770581827984,1.64819617,87.848,87.821,11.38679014]
[1770581828203,1.64819617,87.848,87.82,3.99177903]
[1770581828787,4.19177903,87.92,87.84,3.99177903]
[1770581829098,4.19177903,87.92,87.811,5.36086188]
[1770581829099,0.2,87.88,87.85,3.99177903]
[1770581829302,0.2,87.88,87.86,3.99177903]
[1770581829500,0.2,87.88,87.85,3.99177903]
[1770581829884,11.37941236,87.878,87.85,3.99177903]
[1770581830083,11.37941236,87.878,87.82,1.62154826]
[1770581830283,3.99177903,87.87,87.833,11.38520608]
[1770581830483,3.99177903,87.87,87.83,3.99177903]
[1770581830706,39.82794327,87.878,87.84,3.99177903]
[1770581830909,1.58271524,87.877,87.84,3.99177903]